{"text_format":"1","workbook":"xlsx","n_sheets":3,"sheets":["Затраты","АВТО","ш"],"not_rendered":{"charts":0,"images":0,"macros":1,"external_links":0,"defined_names":1,"comments":1,"pivot_tables":0},"unopened":[],"bounds":{"document_bytes":16777216,"sheet_cells":100000,"rows_first":2000,"rows_last":500,"rows_between":2000,"halvings":0,"cell_chars":16384,"cell_head_chars":4096},"cells_cut":0,"cells_raw":0,"read":"whole","date_system":"1900"}

{"sheet":"Затраты","index":0,"n_rows":165,"n_cols":17,"rows_kept":165,"cut":false,"hidden":false,"merged":[[161,1,161,4],[38,1,38,4],[47,1,47,4],[127,1,127,4]]}
[null,"УКАЗАТЬ МЕСЯЦ:",1,null,null,null,null,null,null,null,{"$f":"VLOOKUP($C$1,$O$3:$P$14,2,0)","v":"Январь"}]
["№ Статьи","Статья затрат (сжато)","Статья затрат (развёрнуто)","Контрагент","Основание","Сумма оплаты","Дата оплаты","№ прим.",null,null,"Статья затрат","Сумма оплаты, грн","Сумма оплаты, тыс.грн"]
["Столбец1","Столбец2","Столбец3","Платежи, выполняемые ЦО","Столбец4","Столбец5","Столбец6",null,null,1,"Аренда, коммун. платежи",{"$f":"SUMIF($A:$A,$J3,$F:$F)","v":0},{"$f":"L3/1000","v":0},null,1,"Январь"]
[1,{"$f":"VLOOKUP(A4,$J$3:$K$22,2,0)","v":"Аренда, коммун. платежи"},"Аренда помещения",null,null,null,null,null,null,2,"Ремонт помещения",{"$f":"SUMIF($A:$A,$J4,$F:$F)","v":0},{"$f":"L4/1000","v":0},null,2,"Февраль"]
[17,"Текущие расходы","Бумага",null,null,null,null,null,null,3,"Охрана",{"$f":"SUMIF($A:$A,$J5,$F:$F)","v":0},0,null,3,"Март"]
[17,"Текущие расходы","Визитки",null,null,null,null,null,null,4,"Транспорт",{"$f":"SUMIF($A:$A,$J6,$F:$F)","v":0},0,"1+2+3+безнал",4,"Апрель"]
[1,"Аренда, коммун. платежи","Вывоз мусора",null,null,null,null,1,null,null,"в т.ч. Наличный транспорт",{"$f":"F162","v":0},0,"1+2+3",5,"Май"]
[5,"Связь","Городская и междугородная связь",null,null,null,null,2,null,null,"в т.ч. Ремонт авто",{"$f":"SUMIF($I$131:$I$161,\"1\",$F$131:$F$161)","v":0},0,1,6,"Июнь"]
[12,"Орг.техника","Заправка/Восстановление картриджа",null,null,null,null,3,null,null,"в т.ч. Бензин личного авто",{"$f":"SUMIF($E$131:$E$161,\"2\",$F$131:$F$161)","v":0},0,2,7,"Июль"]
[16,"Затраты сервис","Затраты сервис",null,null,null,null,4,null,5,"Связь",{"$f":"SUMIF($A:$A,$J10,$F:$F)","v":0},0,null,8,"Август"]
[5,"Связь","Интернет",null,null,null,null,5,null,6,"Банк. обслуживание",{"$f":"SUMIF($A:$A,$J11,$F:$F)","v":0},0,null,9,"Сентябрь"]
[17,"Текущие расходы","Канцтовары",null,null,null,null,6,null,7,"Расходы по ЧП",{"$f":"SUMIF($A:$A,$J12,$F:$F)","v":0},0,null,10,"Октябрь"]
[6,"Банк. обслуживание","Комиссия за принятые платежи",null,null,null,null,null,null,8,"Реклама",{"$f":"SUMIF($A:$A,$J13,$F:$F)","v":0},0,null,11,"Ноябрь"]
[1,"Аренда, коммун. платежи","Коммунальные платежи",null,null,null,null,null,null,9,"Кадр.агенства",{"$f":"SUMIF($A:$A,$J14,$F:$F)","v":0},0,null,12,"Декабрь"]
[13,"Мебель","Мебель",null,null,null,null,null,null,10,"Фонд ЗП",null,0]
[5,"Связь","Мобильная связь",null,null,null,null,null,null,11,"Налоги по з/п ",null,0,null,null,"Бензин","Бензин"]
[12,"Орг.техника","Орг.техника",null,null,null,null,null,null,12,"Орг.техника",{"$f":"SUMIF($A:$A,$J17,$F:$F)","v":0},0,null,null,"Газ","Газ"]
[3,"Охрана","Охрана помещения",null,null,null,null,null,null,13,"Мебель",0,0,null,null,"Дизель","Дизель"]
[9,"Кадр.агенства","Подбор персонала",null,null,null,null,null,null,14,"Складская техника",0,0,null,null,"Сверхлимит","Сверхлимит"]
[8,"Реклама","Реклама",null,null,null,null,null,null,15,"Стеллажи, стенды",0,0,null,null,"Экспл. Расходы","Въезд"]
[2,"Ремонт помещения","Ремонт помещения",null,null,null,null,null,null,16,"Затраты сервис",0,0,null,null,"ТО"]
[17,"Текущие расходы","Сейф для авто",null,null,null,null,null,null,17,"Текущие расходы",0,0,null,null,"Стоянка"]
[14,"Складская техника","Складская техника",null,null,null,null,null,null,null,"Итого, затрат",{"$f":"SUMIF($J$3:$J$22,\">0\",$L$3:$L$22)","v":0},{"$f":"SUMIF($J$3:$J$22,\">0\",$M$3:$M$22)","v":0},null,null,"Въезд"]
[17,"Текущие расходы","Скотч, стрейч-пленка"]
[15,"Стеллажи, стенды","Стеллажи ",null,null,null,null,null,null,null,null,{"$f":"SUMIF($B:$B,\"Итого\",$F:$F)-F48+L15+L16-SUMIF($A:$A,11,$F:$F)","v":0},{"$f":"L25/1000","v":0}]
[4,"Транспорт","Текущие затраты (транспорт)"]
[4,"Транспорт","Топливо для служебного авто"]
[4,"Транспорт","Топливо для служебного авто"]
[4,"Транспорт","Топливо для служебного авто"]
[4,"Транспорт","Топливо для служебного авто"]
[4,"Транспорт","Топливо для служебного авто"]
[4,"Транспорт","Услуги перевозчиков"]
[3,"Охрана","Установка сигнализации"]
[null,{"$error":"#N/A"}]
[null,{"$error":"#N/A"}]
[null,{"$error":"#N/A"}]
[null,{"$error":"#N/A"}]
[null,{"$error":"#N/A"},null,null,null,0]
[null,"Итого",null,null,null,{"$f":"SUM(F4:F38)","v":0}]
[]
[null,null,null,"Платежи, выполняемые РС"]
[null,null,null,null,"ПРИХОД"]
[null,null,null,null,"ОСТАТОК С ПРЕДЫДУЩЕГО МЕСЯЦА"]
[null,null,null,null,"ВСЕГО ПРИХОД",{"$f":"F42+F43","v":0}]
[null,null,"ЗАРПЛАТА"]
["-",null,"Кредит сотруднику","ИТОГО"]
["-",null,"Зар.плата выплаченная","ИТОГО"]
[null,"Итого",null,null,null,{"$f":"SUM(F46:F47)","v":0}]
[]
["Столбец1","Столбец2","ДРУГИЕ РАСХОДЫ ЗА НАЛИЧКУ","Столбец3","Столбец4","Столбец5","Столбец6"]
[1,{"$f":"VLOOKUP(A51,$J$3:$K$22,2,0)","v":"Аренда, коммун. платежи"},"Аренда дополнительного склада"]
[1,{"$f":"VLOOKUP(A52,$J$3:$K$22,2,0)","v":"Аренда, коммун. платежи"},"Аренда, коммунальные платежи"]
[1,"Аренда, коммун. платежи","Аренда помещения"]
[3,"Охрана","ВДСО"]
[17,"Текущие расходы","Возврат клиенту"]
[17,"Текущие расходы","Выгрузка товара погрузчиком"]
[17,"Текущие расходы","Вызов такси"]
[17,"Текущие расходы","Грузчики"]
[12,"Орг.техника","Заправка/Восстановление картриджа"]
[2,"Ремонт помещения","Изготовление и установка решеток на склад"]
[17,"Текущие расходы","Инкассация"]
[9,"Кадр.агенства","Кадровое агенство/Объявление о вакансии"]
[17,"Текущие расходы","Командировочные (билеты)"]
[17,"Текущие расходы","Командировочные (суточные)"]
[12,"Орг.техника","Компьютерное обслуживание"]
[17,"Текущие расходы","Нужды офиса"]
[17,"Текущие расходы","Нужды склада"]
[17,"Текущие расходы","Огнетушители (заправка)"]
[17,"Текущие расходы","Огнетушители (покупка)"]
[17,"Текущие расходы","Отправка писем"]
[3,"Охрана","Охрана помещения"]
[17,"Текущие расходы","Перевозчик (Хранение)"]
[17,"Текущие расходы","Подарок клиенту"]
[17,"Текущие расходы","Подарок сотруднику"]
[17,"Текущие расходы","Покупка воды"]
[17,"Текущие расходы","Покупка воды (Бутли)"]
[17,"Текущие расходы","Покупка воды (Помпа)"]
[17,"Текущие расходы","Покупка замков"]
[17,"Текущие расходы","Покупка канцтоваров"]
[17,"Текущие расходы","Покупка конвертов, марок"]
[17,"Текущие расходы","Покупка лампочек"]
[13,"Мебель","Покупка мебели"]
[12,"Орг.техника","Покупка оргтехники"]
[17,"Текущие расходы","Покупка перчаток, рукавиц"]
[17,"Текущие расходы","Покупка резинок для денег"]
[13,"Мебель","Покупка сейфа"]
[17,"Текущие расходы","Покупка спецодежды"]
[17,"Текущие расходы","Помощь сотруднику"]
[8,"Реклама","Реклама (Оформление)"]
[8,"Реклама","Реклама (СМИ)"]
[8,"Реклама","Реклама (Щит)"]
[17,"Текущие расходы","Ремонт кулера"]
[2,"Ремонт помещения","Ремонт помещения (офис)"]
[2,"Ремонт помещения","Ремонт помещения (сервис)"]
[2,"Ремонт помещения","Ремонт помещения (склад)"]
[5,"Связь","Связь (Городская)"]
[5,"Связь","Связь (Интеретелеком)"]
[5,"Связь","Связь (Интернет мобильный)"]
[5,"Связь","Связь (Интернет)"]
[5,"Связь","Связь (Мобильная)"]
[16,"Затраты сервис","Сервис восстановление некомплектного товара"]
[16,"Затраты сервис","Сервис гарантийный ремонт"]
[16,"Затраты сервис","Сервис покупка запчастей"]
[16,"Затраты сервис","Сервис покупка инструмента"]
[16,"Затраты сервис","Сервис предпродажная подготовка (Бензин)"]
[16,"Затраты сервис","Сервис предпродажная подготовка (Масло)"]
[16,"Затраты сервис","Сервис прочее"]
[16,"Затраты сервис","Сервис расходные материалы"]
[6,{"$f":"VLOOKUP(A109,$J$3:$K$22,2,0)","v":"Банк. обслуживание"},"Банковское обслуживание (Физ.лица)"]
[6,{"$f":"VLOOKUP(A110,$J$3:$K$22,2,0)","v":"Банк. обслуживание"},"СПД (Банковское обслуживание)"]
[7,"Расходы по ЧП","СПД (Оплата единого налога)"]
[7,"Расходы по ЧП","СПД (Оплата пенсионного фонда)"]
[7,"Расходы по ЧП","СПД (Прочее)"]
[15,"Стеллажи, стенды","Стеллажи (Монтаж)"]
[15,"Стеллажи, стенды","Стеллажи/комплектующие к стеллажам"]
[17,"Текущие расходы","Уборка (принадлежности)"]
[17,"Текущие расходы","Уборка помещения"]
[17,"Текущие расходы","Установка кондиционера"]
[5,"Связь","Установка телефонов"]
[17,"Текущие расходы","\"Помощь\" клиентам"]
[17,"Текущие расходы","\"Помощь\" органам"]
[17,"Текущие расходы","Доп.расходы"]
[null,{"$error":"#N/A"}]
[null,{"$error":"#N/A"}]
[null,{"$error":"#N/A"}]
[null,{"$error":"#N/A"}]
[null,{"$error":"#N/A"},null,null,null,0]
[null,"Итого",null,null,null,{"$f":"SUM(F51:F127)","v":0}]
[]
["Столбец1","Столбец2","МАШИНА","Номер или фамилия","Служ(1),Личн(2),Наёмн(3)","Сумма","Описание",null,"Столбец4"]
[4,{"$f":"VLOOKUP(A131,$J$3:$K$22,2,0)","v":"Транспорт"},"Наёмный транспорт (общая сумма)",null,3,null,null,null,{"$f":"IF(AND(E131=1,OR(G131=\"Бензин\",G131=\"Газ\",G131=\"Дизель\",G131=\"Сверхлимит\",G131=\"Стоянка\",G131=\"Въезд\")),\"\",E131)","v":3}]
[4,{"$f":"VLOOKUP(A132,$J$3:$K$22,2,0)","v":"Транспорт"},null,null,null,null,null,null,0]
[4,{"$f":"VLOOKUP(A133,$J$3:$K$22,2,0)","v":"Транспорт"},null,null,null,null,null,null,0]
[4,"Транспорт",null,null,null,null,null,null,0]
[4,"Транспорт",null,null,null,null,null,null,0]
[4,"Транспорт",null,null,null,null,null,null,0]
[4,"Транспорт",null,null,null,null,null,null,0]
[4,"Транспорт",null,null,null,null,null,null,0]
[4,"Транспорт",null,null,null,null,null,null,0]
[4,"Транспорт",null,null,null,null,null,null,0]
[4,"Транспорт",null,null,null,null,null,null,0]
[4,"Транспорт",null,null,null,null,null,null,0]
[4,"Транспорт",null,null,null,null,null,null,0]
[4,"Транспорт",null,null,null,null,null,null,0]
[4,"Транспорт",null,null,null,null,null,null,0]
[4,"Транспорт",null,null,null,null,null,null,0]
[4,"Транспорт",null,null,null,null,null,null,0]
[4,"Транспорт",null,null,null,null,null,null,0]
[4,"Транспорт",null,null,null,null,null,null,0]
[4,"Транспорт",null,null,null,null,null,null,0]
[4,"Транспорт",null,null,null,null,null,null,0]
[4,"Транспорт",null,null,null,null,null,null,0]
[4,"Транспорт",null,null,null,null,null,null,0]
[4,"Транспорт",null,null,null,null,null,null,0]
[4,"Транспорт",null,null,null,null,null,null,0]
[4,"Транспорт",null,null,null,null,null,null,0]
[4,"Транспорт",null,null,null,null,null,null,0]
[4,"Транспорт",null,null,null,null,null,null,0]
[4,"Транспорт",null,null,null,null,null,null,0]
[4,"Транспорт",null,null,null,null,null,null,0]
[4,"Транспорт",null,null,null,0,null,null,0]
[null,"Итого",null,null,null,{"$f":"SUM(F131:F161)","v":0}]
[]
[null,null,null,null,"ВСЕГО РАСХОД",{"$f":"F162+F128+F48","v":0}]
[null,null,null,null,"ОСТАТОК НА КОНЕЦ МЕСЯЦА",{"$f":"F44-F164","v":0}]

{"sheet":"АВТО","index":1,"n_rows":42,"n_cols":8,"rows_kept":42,"cut":false,"hidden":false,"merged":[]}
[null,null,"Платежи, выполняемые РС",null,null,null,"ИТОГО",{"$f":"SUMIF($A:$A,$G$1,$E:$E)","v":0}]
[null,"Наименование","Кол-во","Цена","Сумма"]
["итого","ГАЗель",null,null,{"$f":"SUM(E4:E12)","v":0}]
[null,"Эксплуатационные расходы"]
[1,"Омыватель"]
[2,"Омыватель,силикон"]
[3,"Огнетушытель"]
[4,"Аптечка"]
[null,"Плановое ТО"]
[1,"Набор прокладок"]
[2,"Шиномонтаж"]
[3,"Держатель дворника"]
["итого","Volskvagen LT 35",null,null,{"$f":"SUM(E14:E22)","v":0}]
[null,"Эксплуатационные расходы"]
[1,"Мойка"]
[2,"Дворники,тормозна жидкость"]
[3]
[]
[null,"Плановое ТО"]
[1,"Диагностика,замена свеч накала"]
[2,"Замена масла"]
[3]
["итого","Машина 3","Ном.знак 3",null,{"$f":"SUM(E24:E32)","v":0}]
[null,"Эксплуатационные расходы"]
[1,null,null,null,{"$f":"C25*D25","v":0}]
[2,null,null,null,{"$f":"C26*D26","v":0}]
[3,null,null,null,{"$f":"C27*D27","v":0}]
[]
[null,"Плановое ТО"]
[1,null,null,null,{"$f":"C30*D30","v":0}]
[2,null,null,null,{"$f":"C31*D31","v":0}]
[3,null,null,null,{"$f":"C32*D32","v":0}]
["итого","Машина 4","Ном.знак 4",null,{"$f":"SUM(E34:E42)","v":0}]
[null,"Эксплуатационные расходы"]
[1,null,null,null,{"$f":"C35*D35","v":0}]
[2,null,null,null,{"$f":"C36*D36","v":0}]
[3,null,null,null,{"$f":"C37*D37","v":0}]
[]
[null,"Плановое ТО"]
[1,null,null,null,{"$f":"C40*D40","v":0}]
[2,null,null,null,{"$f":"C41*D41","v":0}]
[3,null,null,null,{"$f":"C42*D42","v":0}]

{"sheet":"ш","index":2,"n_rows":0,"n_cols":0,"rows_kept":0,"cut":false,"hidden":true,"merged":[]}